bitfinex-derivatives/quotes_ETHF0:USTF0_20260303
["timestamp","ask_amount","ask_price","bid_price","bid_amount"]
[1772515361882,0.00476931,2011.1,2010.7,7.91445022]
[1772515362278,0.00476931,2011.1,2010.9,7.91094629]
[1772515364181,1.00924666,2011.0,2010.7,0.00350393]
[1772515364383,1.00924666,2010.9,2010.7,4.88893629]
[1772515364783,8.61584366,2011.0,2010.7,4.88893629]
[1772515365083,8.61584366,2011.0,2010.7,0.00350393]
[1772515365681,7.606597,2011.0,2010.7,0.00350393]
[1772515366085,7.606597,2011.0,2010.7,5.42464046]
[1772515366286,6.517,2011.0,2010.7,5.42464046]
[1772515366684,14.123597,2011.0,2010.7,5.42464046]
[1772515368684,15.13284366,2011.0,2010.7,5.42464046]
[1772515368982,8.17863034,2010.9,2010.7,0.00350393]
[1772515369289,9.187877,2010.9,2010.7,0.00350393]
[1772515369689,9.187877,2010.8,2010.5,11.80341286]
[1772515370280,8.17863034,2010.8,2010.5,11.80341286]
[1772515370684,8.17863034,2010.8,2010.5,11.80696968]
[1772515371083,8.17863034,2010.8,2010.5,6.52055682]
[1772515371283,8.17863034,2010.6,2010.2,5.24941198]
[1772515371484,8.17863034,2010.6,2010.2,5.2529688]
[1772515371485,8.17863034,2010.5,2010.2,5.2529688]
[1772515371681,8.17863034,2010.8,2010.2,5.2529688]
[1772515371983,6.517,2010.7,2010.2,5.2529688]
[1772515372185,6.517,2010.7,2010.2,5.25471305]
[1772515373192,14.69563034,2010.7,2010.2,5.25471305]
[1772515373592,14.69563034,2010.7,2009.6,1.25918637]
[1772515373593,4.76570694,2009.9,2009.0,8.28138432]
[1772515373796,0.24878,2010.2,2009.0,8.28138432]
[1772515373797,11.28270694,2009.8,2009.0,8.28138432]
[1772515374090,11.28171482,2009.7,2009.0,8.28138432]
[1772515374290,4.76471482,2009.4,2009.0,8.28138432]
[1772515374495,6.52300882,2009.4,2009.0,8.28553154]
[1772515374690,0.00600882,2009.4,2009.0,8.28553154]
[1772515374897,6.02438921,2009.3,2009.0,0.00414722]
[1772515375393,6.02024199,2009.0,2008.0,8.28138432]
[1772515375591,7.88675651,2009.2,2007.8,1.01035637]
[1772515375592,6.02024199,2008.8,2008.1,8.28138432]
[1772515375793,6.02024199,2008.8,2004.8,3.89727325]
[1772515375794,7.0234131,2008.3,2006.7,8.28138432]
[1772515375997,6.517,2008.2,2007.2,8.28138432]
[1772515376198,1.01035637,2008.1,2007.3,8.28138432]
[1772515376696,12.5308617,2008.2,2007.3,8.28138432]
[1772515377495,5.98967405,2008.1,2007.3,8.28138432]
[1772515378400,6.517,2008.1,2007.3,8.28138432]
[1772515378898,6.517,2008.0,2007.3,8.28138432]
[1772515379095,1.36792951,2008.8,2007.3,8.28138432]
[1772515379096,6.517,2007.9,2007.3,8.28138432]
[1772515379299,0.00369545,2007.9,2007.3,8.28138432]
[1772515382401,6.517,2007.8,2007.3,8.28138432]
[1772515382597,8.17863034,2007.7,2007.2,8.28755275]
[1772515382903,14.69663034,2007.7,2007.2,8.28755275]
[1772515383203,6.517,2007.6,2007.2,8.28755275]
[1772515383706,8.17863034,2007.5,2006.2,8.28138432]
[1772515384699,8.17863034,2007.3,2006.2,8.28516074]
[1772515384900,6.518,2007.2,2006.2,8.28516074]
[1772515385095,8.17863034,2007.3,2006.2,8.28516074]
[1772515385303,8.17863034,2007.1,2006.2,8.28516074]
[1772515385504,14.69663034,2007.0,2006.2,8.28516074]
[1772515385704,8.17863034,2007.0,2006.2,8.28516074]
[1772515385905,8.17863034,2007.2,2006.2,8.28516074]
[1772515386106,8.17863034,2007.6,2006.2,8.28516074]
[1772515386308,14.69563034,2007.5,2006.2,8.28516074]
[1772515386603,6.518,2007.4,2006.2,8.28516074]
[1772515387012,0.00369545,2007.9,2006.2,8.28516074]
[1772515387309,14.69563034,2007.8,2006.4,9.64931383]
[1772515387500,14.69563034,2007.8,2006.6,8.28138432]
[1772515387904,6.518,2007.7,2006.6,8.28138432]
[1772515388109,14.69663034,2007.8,2006.8,8.28138432]
[1772515388300,0.00369545,2007.9,2007.0,8.28138432]
[1772515390911,8.18232579,2007.9,2007.0,8.28138432]
[1772515394511,6.52169545,2007.9,2007.0,8.28138432]
[1772515394707,0.00369545,2007.9,2007.0,8.28138432]
[1772515395209,14.69663034,2008.2,2007.2,8.28138432]
[1772515395510,8.17863034,2008.5,2007.4,8.28138432]
[1772515396012,8.17863034,2008.7,2007.6,8.28138432]
[1772515396305,0.00623719,2008.7,2007.8,8.28138432]
[1772515396505,0.00623719,2008.7,2007.8,8.286284]
[1772515397912,0.00623719,2008.7,2008.0,9.13470797]
[1772515398206,0.00623719,2008.7,2007.9,0.24905]
[1772515398207,0.00623719,2008.7,2008.2,9.13470797]
[1772515398803,6.518,2009.1,2008.2,9.13470797]
[1772515399011,9.20978779,2009.1,2008.2,9.13470797]
[1772515399415,15.72778779,2009.1,2008.2,9.13470797]
[1772515399711,15.72778779,2009.1,2007.9,0.24905]
[1772515399712,9.1376962,2008.6,2007.8,9.75004386]
[1772515400008,9.1376962,2008.4,2007.8,9.75004386]
[1772515400912,9.1376962,2008.4,2007.8,0.00489968]
[1772515401904,9.1376962,2008.2,2007.8,9.75004386]
[1772515402102,9.1376962,2008.2,2007.8,0.00489968]
[1772515402711,9.1376962,2008.2,2007.4,16.26314418]
[1772515403211,9.1376962,2008.2,2007.5,9.74514418]
[1772515403806,9.1376962,2008.2,2007.5,9.74922466]
[1772515405208,6.99416322,2008.1,2007.5,9.74922466]
[1772515405409,16.13185942,2008.1,2007.5,9.74922466]
[1772515405615,9.1376962,2008.1,2007.5,9.74922466]
[1772515408115,15.6556962,2008.1,2007.5,9.74922466]
[1772515408616,9.1376962,2008.1,2007.5,9.74922466]
[1772515408817,9.1376962,2008.0,2007.5,9.74922466]
[1772515409414,9.1376962,2008.0,2007.5,9.74788715]
[1772515410507,15.6556962,2008.1,2007.5,9.74788715]
[1772515410907,9.1376962,2008.1,2007.5,9.74788715]
[1772515411115,15.6556962,2008.3,2007.6,9.74514418]
[1772515412213,6.518,2008.3,2007.6,9.74514418]
[1772515412920,9.1376962,2008.6,2007.6,9.74514418]
[1772515414721,9.1376962,2008.9,2007.6,9.74514418]
[1772515414922,9.1376962,2008.7,2007.6,9.74514418]
[1772515417211,9.1376962,2008.5,2007.6,9.74514418]
[1772515417416,9.1376962,2008.4,2007.6,9.74514418]
[1772515418618,9.1376962,2008.4,2007.0,10.143]
[1772515418619,1.51297181,2007.2,2005.3,9.74514418]
[1772515418924,1.51297181,2006.7,2005.5,9.74514418]
[1772515419120,8.03197181,2006.7,2005.7,9.74514418]
[1772515419320,8.03197181,2006.7,2005.9,9.74514418]
[1772515419520,8.03624599,2006.7,2005.9,9.74885411]
[1772515419717,1.35268586,2006.6,2005.9,9.74885411]
[1772515420021,1.35268586,2006.6,2005.9,0.00370993]
[1772515420822,2.86376222,2006.4,2005.9,0.00370993]
[1772515421022,2.54097839,2006.2,2005.9,0.00370993]
[1772515421521,1.62141369,2006.7,2005.6,9.74514418]
[1772515421522,2.54097839,2006.4,2005.6,9.74514418]
[1772515422416,2.54097839,2006.4,2005.6,9.75028405]
[1772515423218,2.54097839,2006.4,2005.7,6.519]
[1772515423415,2.54097839,2006.4,2005.8,9.74514418]
[1772515425522,2.54097839,2006.4,2005.6,9.75028405]
[1772515426829,1.96375453,2006.0,2005.3,9.74514418]
[1772515427029,2.01131397,2005.9,2005.1,9.74514418]
[1772515427925,2.01131397,2005.9,2005.1,9.7510505]
[1772515429827,1.88560583,2005.7,2005.1,9.77644467]
[1772515431230,0.24934,2005.6,2004.5,9.77053835]
[1772515431526,1.88560583,2005.7,2004.5,9.77053835]
[1772515431527,9.72758601,2005.5,2004.5,9.77053835]
[1772515432329,1.83529674,2005.9,2004.7,9.77053835]
[1772515433026,3.19646788,2005.8,2004.7,9.77053835]
[1772515433723,3.19646788,2006.0,2004.7,11.1418069]
[1772515433928,1.82276859,2005.9,2004.7,9.77053835]
[1772515435025,1.7164218,2006.1,2005.0,9.77053835]
[1772515435227,1.37126855,2006.2,2005.2,9.77053835]
[1772515435828,3.08769035,2006.2,2005.2,9.77053835]
[1772515438329,1.75912771,2006.1,2005.2,9.77053835]
[1772515438726,1.76340189,2006.7,2005.5,9.77053835]
[1772515438932,1.76340189,2006.7,2005.7,9.77053835]
[1772515442929,0.00427418,2006.7,2005.7,9.77053835]
[1772515443832,4.16884622,2007.4,2005.6,8.14059855]
[1772515443833,1.6477935,2007.2,2006.1,9.77053835]
[1772515444031,1.6477935,2007.2,2006.3,9.77053835]
[1772515444032,3.01906205,2007.2,2006.3,9.77053835]
[1772515444938,3.02334793,2007.2,2006.3,9.77515477]
[1772515445235,1.55804005,2007.1,2006.3,9.77515477]
[1772515447033,1.37126855,2007.0,2006.3,9.77515477]
[1772515447228,0.00428588,2007.2,2006.3,9.77515477]
[1772515450534,1.45789504,2007.5,2006.3,9.77515477]
[1772515450747,1.45701315,2007.8,2006.5,9.84691996]
[1772515450934,1.45701315,2007.8,2006.4,1.37126855]
[1772515450935,6.88957961,2007.7,2006.7,9.84572569]
[1772515451136,7.97344731,2008.1,2006.9,9.84572569]
[1772515451337,7.97344731,2008.1,2007.1,9.84572569]
[1772515451637,1.45344731,2007.8,2007.1,9.84572569]
[1772515451841,2.82471586,2007.7,2007.1,9.84572569]
[1772515452534,2.82471586,2007.7,2006.4,1.62049855]
[1772515452535,1.44823407,2007.5,2006.9,9.84537171]
[1772515452738,3.818,2007.4,2006.9,9.84537171]
[1772515457044,3.818,2007.6,2006.9,9.84537171]
[1772515457644,5.13478968,2007.6,2006.9,9.84537171]
[1772515458146,3.818,2007.6,2006.9,9.84537171]
[1772515458347,3.818,2007.6,2007.1,10.15281177]
[1772515458644,3.818,2007.9,2007.2,10.15281177]
[1772515459438,0.00376589,2008.1,2007.2,10.15281177]
[1772515459439,3.818,2008.0,2007.2,10.15281177]
[1772515464645,3.82176589,2008.1,2007.4,10.02796938]
[1772515464851,3.82176589,2008.1,2007.6,10.02796938]
[1772515466650,3.11193575,2008.1,2007.6,10.02796938]
[1772515467751,3.11798314,2008.1,2007.6,10.02796938]
[1772515468548,0.24518371,2008.1,2007.6,10.02796938]
[1772515468748,7.89226855,2008.8,2007.6,10.02796938]
[1772515468749,9.59750047,2008.5,2007.6,10.02796938]
[1772515469853,9.60265964,2008.5,2007.6,10.02796938]
[1772515470353,5.96228834,2008.4,2007.6,10.02796938]
[1772515471151,6.03767289,2008.1,2007.4,10.02796938]
[1772515473853,6.12500304,2008.3,2007.4,10.02796938]
[1772515474054,6.12500304,2008.4,2007.4,10.02796938]
[1772515474659,6.12500304,2008.4,2007.4,11.39923793]
[1772515475647,9.85914928,2008.5,2007.4,11.39923793]
[1772515477657,3.82315917,2008.5,2007.4,11.39923793]
[1772515477958,9.86254043,2008.5,2007.4,11.39923793]
[1772515478760,6.03938126,2008.4,2007.4,11.39923793]
[1772515479358,3.82315917,2008.5,2007.4,11.39923793]
[1772515479961,9.89828844,2008.5,2007.4,11.39923793]
[1772515480260,6.87605937,2008.4,2007.4,11.39923793]
[1772515481159,6.87605937,2008.4,2007.3,6.521]
[1772515481160,6.87605937,2008.4,2007.6,11.39923793]
[1772515481363,3.82315917,2008.5,2007.8,11.39923793]
[1772515481562,4.13902903,2008.8,2008.0,10.02796938]
[1772515481563,6.07400877,2008.8,2008.0,10.02796938]
[1772515481754,9.89716794,2009.0,2008.2,10.02796938]
[1772515481959,6.87425147,2008.9,2008.2,10.02796938]
[1772515482154,9.89034935,2009.1,2008.2,10.02796938]
[1772515482364,6.87138106,2009.0,2008.2,10.02796938]
[1772515482566,6.87782948,2009.0,2008.2,10.02796938]
[1772515483558,0.00644842,2009.0,2008.2,11.39923793]
[1772515484765,10.03219382,2009.0,2008.2,10.02796938]
[1772515486470,11.40346237,2009.0,2008.3,10.02796938]
[1772515489174,10.03032898,2008.7,2008.2,16.735746]
[1772515489464,10.03032898,2008.7,2008.2,10.214746]
[1772515490074,1.37126855,2008.8,2007.8,10.21862676]
[1772515490075,10.02161243,2008.5,2007.8,10.21862676]
[1772515490470,10.02161243,2008.5,2007.9,6.537]
[1772515491470,9.96853181,2008.4,2007.8,16.75962676]
[1772515493472,9.96853181,2008.4,2007.9,10.214746]
[1772515494270,9.8836879,2008.7,2007.9,10.214746]
[1772515494475,9.8836879,2008.5,2007.9,10.214746]
[1772515498075,9.96896499,2008.8,2007.9,10.214746]
[1772515498375,6.82338532,2008.7,2007.9,10.214746]
[1772515498672,9.97541341,2009.0,2007.9,10.214746]
[1772515499769,0.00644842,2009.0,2007.9,10.214746]
[1772515500373,6.82895167,2009.0,2007.9,10.214746]
[1772515500975,0.00644842,2009.0,2008.1,10.214746]
[1772515501276,0.00644842,2009.0,2008.3,10.214746]
[1772515503470,10.08466083,2009.6,2008.5,10.214746]
[1772515503674,7.95702903,2009.9,2008.7,10.214746]
[1772515503880,10.08466083,2009.8,2008.7,10.214746]
[1772515504379,10.08961312,2009.8,2008.7,10.214746]
[1772515505674,9.89464624,2009.3,2008.6,6.595]
[1772515506081,9.89464624,2009.3,2008.6,16.809746]
[1772515506475,9.89464624,2009.3,2008.4,16.812746]
[1772515507383,9.89464624,2009.3,2008.5,10.214746]
[1772515511087,6.521,2009.4,2008.5,10.214746]
[1772515511088,10.12348982,2009.4,2008.5,10.214746]
[1772515512082,13.93054452,2009.5,2008.5,10.214746]
[1772515513083,10.11691555,2009.4,2008.5,10.214746]
[1772515518594,11.48452024,2009.4,2008.5,16.51172193]
[1772515518798,11.48452024,2009.4,2008.6,10.78041292]
[1772515519495,9.95448565,2009.2,2008.5,6.615]
[1772515520595,9.95448565,2009.2,2008.5,17.39541292]
[1772515520998,9.95448565,2009.2,2008.5,6.615]
[1772515523696,9.95448565,2009.2,2008.3,6.631]
[1772515524192,9.95448565,2009.2,2008.3,17.41141292]
[1772515524898,6.76988,2009.3,2008.3,17.41141292]
[1772515524899,9.95448565,2009.0,2008.3,17.41141292]
[1772515525099,9.95448565,2008.9,2008.3,6.631]
[1772515526000,9.95448565,2008.9,2008.2,10.78041292]
[1772515527801,9.90693998,2009.3,2008.2,10.78041292]
[1772515528002,6.79410632,2009.2,2008.2,10.78041292]
[1772515528192,3.818,2009.4,2008.2,10.78041292]
[1772515528395,9.89474083,2009.5,2008.2,12.14801761]
[1772515531303,9.89474083,2009.5,2008.2,10.78041292]
[1772515531604,9.59771205,2009.3,2008.2,10.78041292]
[1772515533107,13.40424227,2009.6,2008.2,10.78041292]
[1772515533403,16.38338584,2009.5,2008.2,10.78041292]
[1772515533603,16.38338584,2009.4,2008.2,10.78041292]
[1772515533805,9.58624227,2009.3,2008.2,10.78041292]
[1772515537805,9.58624227,2009.3,2008.3,6.668]
[1772515538003,9.58624227,2009.3,2008.4,10.78041292]
[1772515538308,9.55914507,2009.1,2008.4,10.78041292]
[1772515540303,9.55914507,2009.1,2008.3,6.668]
[1772515540304,9.42190274,2008.9,2008.3,6.47231064]
[1772515540606,9.42190274,2008.9,2008.3,17.25272356]
[1772515541007,9.42190274,2008.9,2008.3,5.77631064]
[1772515541208,9.50425212,2008.8,2008.1,10.78041292]
[1772515541507,9.50425212,2008.8,2008.2,6.681]
[1772515541702,9.50425212,2008.8,2008.1,10.78041292]
[1772515541907,9.50425212,2008.8,2008.2,17.46241292]
[1772515542907,3.818,2008.9,2008.3,10.78041292]
[1772515543305,13.49338407,2008.9,2008.3,10.78041292]
[1772515543505,9.67538407,2008.8,2008.3,10.78041292]
[1772515543806,9.67538407,2008.8,2008.0,10.78041292]
[1772515544006,9.67538407,2008.8,2007.8,0.00388076]
[1772515544007,9.66150939,2008.7,2008.1,17.47241292]
[1772515544208,9.66150939,2008.7,2007.8,0.00388076]
[1772515544209,9.66150939,2008.7,2008.0,10.78041292]
[1772515544411,9.66150939,2008.6,2008.0,10.78041292]
[1772515545910,9.66150939,2008.6,2007.9,6.694]
[1772515547408,9.66150939,2008.6,2007.9,17.47441292]
[1772515548107,9.66150939,2008.6,2007.8,0.00388076]
[1772515548809,7.88860469,2008.7,2007.8,0.00388076]
[1772515548810,9.63653044,2008.4,2007.8,0.00388076]
[1772515549109,9.64240761,2008.2,2007.8,10.25139873]
[1772515549315,9.64658638,2008.2,2007.8,10.25139873]
[1772515549613,9.64658638,2008.2,2007.8,0.00388076]
[1772515549812,9.64658638,2008.2,2007.8,10.25139873]
[1772515550816,9.64658638,2008.2,2007.8,0.00388076]
[1772515553010,9.64658638,2008.2,2007.8,10.25139873]
[1772515557516,15.8781246,2008.4,2007.8,10.25139873]
[1772515557711,9.3161246,2008.3,2007.8,10.25139873]
[1772515557911,9.3161246,2008.3,2007.8,0.00388076]
[1772515558622,9.32227647,2008.3,2007.8,0.00388076]
[1772515559824,9.32227647,2008.3,2007.7,10.24751797]
[1772515560327,9.24246533,2008.1,2007.6,16.96051797]
[1772515560920,9.24246533,2008.1,2007.6,16.96589251]
[1772515561323,9.24930006,2007.9,2007.3,17.01851797]
[1772515561619,9.24930006,2007.9,2007.3,17.01951797]
[1772515562126,9.24930006,2007.9,2007.4,10.24751797]
[1772515562427,9.24930006,2007.9,2007.4,10.2531483]
[1772515562625,6.595,2007.8,2007.4,0.00563033]
[1772515562827,9.23517767,2007.7,2007.3,17.02251797]
[1772515563128,9.23517767,2007.7,2007.4,10.24751797]
[1772515563326,9.23517767,2007.7,2007.4,6.42114511]
[1772515563728,9.23517767,2007.7,2007.4,6.42474733]
[1772515565427,18.31931747,2008.0,2007.4,6.42474733]
[1772515565728,3.818,2008.1,2007.4,6.42474733]
[1772515565929,10.34067392,2008.2,2007.4,6.42474733]
[1772515566532,1.01314542,2008.1,2007.4,7.43789275]
[1772515567726,1.01314542,2008.0,2007.4,6.42474733]
[1772515567929,6.62415187,2008.3,2007.4,6.42474733]
[1772515567930,11.35381934,2007.9,2007.4,6.42474733]
[1772515568526,10.34067392,2007.9,2007.4,6.42474733]
[1772515568824,7.99213152,2008.3,2007.4,6.42474733]
[1772515568825,10.34682579,2008.3,2007.4,6.42474733]
[1772515569025,0.00615187,2008.3,2007.4,6.42474733]
[1772515569231,10.34682579,2008.3,2007.4,6.42474733]
[1772515569725,11.71480544,2008.3,2007.4,6.42474733]
[1772515569927,0.00615187,2008.3,2007.4,6.42474733]
[1772515570132,10.34067392,2008.9,2007.7,10.24751797]
[1772515570327,10.34067392,2008.9,2008.1,10.24751797]
[1772515570527,10.34067392,2008.9,2008.3,10.24751797]
[1772515571027,10.34067392,2008.9,2008.2,6.799]
[1772515571331,10.34467924,2008.9,2008.2,17.04751797]
[1772515571531,10.34467924,2008.9,2008.3,10.24751797]
[1772515572032,10.34067392,2008.8,2008.3,10.24751797]
[1772515573031,10.34067392,2008.6,2008.0,17.05451797]
[1772515573527,10.34067392,2008.5,2008.0,10.24751797]
[1772515573728,10.34067392,2008.5,2007.4,0.25271222]
[1772515573729,11.70865357,2008.5,2007.6,6.809]
[1772515574029,11.70865357,2008.5,2007.7,10.24751797]
[1772515574532,10.34067392,2008.5,2007.7,10.24751797]
[1772515575430,1.37198497,2008.9,2007.7,11.61549762]
[1772515575431,10.34067392,2008.8,2007.7,11.61549762]
[1772515575625,6.64700532,2008.9,2007.9,11.61549762]
[1772515575626,0.00400532,2008.9,2007.9,11.61549762]
[1772515575826,0.00400532,2008.9,2008.1,10.24751797]
[1772515576229,10.34467924,2008.9,2008.1,10.24751797]
[1772515576427,0.00400532,2008.9,2008.1,11.61549762]
[1772515577731,10.45237009,2008.9,2008.1,10.24751797]
[1772515579132,0.00400532,2008.9,2008.1,10.24751797]
[1772515579331,10.36739326,2008.9,2008.1,10.24751797]
[1772515585440,0.00400532,2008.9,2008.1,10.24751797]
[1772515591244,0.00400532,2008.9,2008.1,11.61549762]
[1772515591439,3.818,2009.1,2008.1,11.61549762]
[1772515591642,3.818,2009.1,2008.3,1.36797965]
[1772515591837,3.818,2009.1,2008.5,10.19478917]
[1772515592242,10.36338794,2009.2,2008.5,10.19478917]
[1772515592442,10.36801806,2009.2,2008.5,10.19478917]
[1772515596646,11.38009032,2009.2,2008.5,10.19478917]
[1772515596845,1.01207226,2009.1,2008.5,10.19478917]
[1772515597045,11.3754602,2009.1,2008.5,10.19478917]
[1772515597348,10.36338794,2008.7,2008.4,17.05378917]
[1772515597644,11.3754602,2008.7,2008.4,6.859]
[1772515597847,11.3754602,2008.7,2008.4,17.05378917]
[1772515598349,10.36338794,2008.7,2008.4,17.05378917]
[1772515598848,11.87082775,2009.1,2008.4,17.05378917]
[1772515599049,10.36338794,2008.9,2008.5,10.19478917]
[1772515599245,10.36338794,2008.9,2008.4,6.859]
[1772515599545,10.36338794,2008.9,2008.4,17.05378917]
[1772515599849,11.73021569,2008.9,2008.4,6.859]
[1772515600351,10.36338794,2008.6,2008.0,10.19478917]
[1772515601845,8.06682775,2008.7,2007.9,10.19478917]
[1772515601846,10.36338794,2008.4,2007.9,10.19478917]
[1772515602048,10.36338794,2008.3,2007.9,10.19478917]
[1772515602445,17.07838794,2008.5,2007.9,10.19478917]
[1772515602943,10.36338794,2008.4,2008.0,10.19478917]
[1772515603847,10.36338794,2008.4,2007.9,17.09778917]
[1772515604548,10.36338794,2008.4,2007.4,0.00360222]
[1772515604753,10.36338794,2008.4,2007.6,10.19478917]
[1772515606751,10.36338794,2008.2,2007.4,17.11539139]
[1772515606954,10.36338794,2008.2,2007.5,10.19478917]
[1772515608056,16.36896312,2008.4,2007.5,10.19478917]
[1772515608256,9.62796312,2008.3,2007.5,10.19478917]
[1772515610056,6.741,2008.4,2007.4,10.21402924]
[1772515610057,9.62796312,2007.8,2007.4,10.21402924]
[1772515610256,9.62796312,2008.0,2007.4,10.21402924]
[1772515610557,9.62796312,2008.0,2007.5,10.21042702]
[1772515611454,9.62796312,2008.0,2007.4,0.00360222]
[1772515612262,6.76,2007.9,2007.4,10.21042702]
[1772515612461,9.62796312,2007.8,2007.3,6.933]
[1772515612756,9.62796312,2007.8,2007.3,17.14342702]
[1772515613161,9.62796312,2007.8,2007.3,17.1471956]
[1772515613963,9.62796312,2007.8,2007.3,6.93676858]
[1772515615262,9.62796312,2008.0,2007.4,10.21042702]
[1772515616359,9.62796312,2008.3,2007.4,10.21042702]
[1772515617564,9.62796312,2008.2,2007.4,10.21042702]
[1772515619665,10.99615526,2008.2,2007.4,10.21042702]
[1772515620865,9.62796312,2008.4,2007.4,10.21042702]
[1772515621063,7.87041147,2008.8,2007.4,10.21042702]
[1772515621064,6.793,2008.2,2007.4,10.21042702]
[1772515621265,9.62796312,2008.2,2007.4,10.21042702]
[1772515622168,9.62796312,2008.4,2007.4,10.21042702]
[1772515622368,0.24895,2008.8,2007.3,6.93676858]
[1772515622369,9.62796312,2008.7,2007.6,10.21042702]
[1772515622569,9.62796312,2008.7,2007.8,10.21042702]
[1772515635065,9.62796312,2008.7,2007.9,10.21042702]
[1772515637175,3.818,2008.7,2007.9,10.21042702]
[1772515637374,9.62796312,2008.6,2007.9,10.21042702]
[1772515638773,9.87693312,2008.6,2007.8,6.975]
[1772515639078,9.87693312,2008.6,2007.9,9.67956093]
[1772515639870,6.826,2008.5,2007.9,9.67956093]
[1772515640176,9.75315719,2008.5,2007.9,9.67956093]
[1772515642170,9.75315719,2008.5,2007.7,9.72802795]
[1772515646184,9.75315719,2008.3,2007.7,9.72802795]
[1772515646377,9.75315719,2008.2,2007.3,9.73179653]
[1772515649682,9.75315719,2008.0,2007.3,9.73179653]
[1772515650882,13.57115719,2008.1,2007.3,9.73179653]
[1772515651084,9.75315719,2008.0,2007.3,9.73179653]
[1772515656888,3.818,2008.1,2007.3,9.73179653]
[1772515656889,9.75315719,2008.1,2007.3,9.73179653]
[1772515657087,4.13902903,2008.4,2007.3,9.73179653]
[1772515657088,9.75315719,2008.3,2007.3,9.73179653]
[1772515661688,9.75315719,2008.5,2007.3,9.73179653]
[1772515662085,10.00211719,2008.7,2007.3,9.73179653]
[1772515662290,16.38641939,2008.6,2007.3,9.73179653]
[1772515662489,9.75315719,2008.6,2007.3,9.73179653]
[1772515667288,9.75315719,2008.5,2007.3,9.73179653]
[1772515667488,13.57115719,2008.6,2007.3,9.73179653]
[1772515667793,9.43457419,2008.5,2007.3,9.73179653]
[1772515668387,9.43457419,2008.5,2007.5,9.15646837]
[1772515668593,3.818,2008.6,2007.7,9.15646837]
[1772515670302,9.43457419,2008.7,2007.7,9.15646837]
[1772515673196,9.43457419,2008.7,2007.9,9.15646837]
[1772515673502,9.43457419,2008.7,2008.1,9.15646837]
[1772515673689,9.43457419,2008.9,2008.1,9.15646837]
[1772515673889,9.43457419,2008.9,2008.3,9.15646837]
[1772515674097,9.43457419,2008.9,2008.5,9.15646837]
[1772515674693,9.43457419,2008.9,2008.4,7.037]
[1772515674694,9.43457419,2008.9,2008.4,16.19346837]
[1772515675189,9.43457419,2008.9,2008.5,9.15646837]
[1772515675802,9.43457419,2008.9,2008.4,16.19346837]
[1772515677392,9.43457419,2008.9,2008.5,9.15646837]
[1772515678293,9.43457419,2009.1,2008.5,9.15646837]
[1772515680197,9.43457419,2009.1,2008.4,7.037]
[1772515680398,1.37161777,2009.2,2008.3,9.15646837]
[1772515680399,4.90729558,2008.9,2008.3,9.15646837]
[1772515682004,4.90729558,2008.9,2008.2,7.063]
[1772515682005,6.87470087,2008.8,2008.2,7.063]
[1772515682303,9.32571322,2008.8,2008.3,9.15646837]
[1772515682506,5.50771322,2008.7,2008.3,9.15646837]
[1772515682702,3.818,2008.8,2008.3,9.15646837]
[1772515683304,9.26690844,2008.8,2008.3,9.15646837]
[1772515684114,9.25569772,2008.8,2008.3,9.15646837]
[1772515684607,10.26814951,2008.8,2008.3,9.15646837]
[1772515686212,3.818,2008.8,2008.3,9.15646837]
[1772515686613,9.25087319,2008.8,2008.3,9.15646837]
[1772515688214,5.43287319,2008.8,2008.3,9.15646837]
[1772515690413,1.01245179,2008.9,2008.3,9.15646837]
[1772515690612,10.24148938,2009.0,2008.3,10.16892016]
[1772515691020,5.41589993,2008.9,2008.3,10.16892016]
[1772515691211,6.42835172,2008.9,2008.3,9.15646837]
[1772515691415,10.24635172,2009.0,2008.3,9.15646837]
[1772515691818,10.25098184,2009.2,2008.5,9.15646837]
[1772515692121,10.25098184,2009.2,2008.7,9.15646837]
[1772515692516,5.40463063,2009.1,2008.7,9.15646837]
[1772515693218,9.25811548,2009.2,2008.7,9.15646837]
[1772515693423,5.43548536,2009.1,2008.7,9.15646837]
[1772515693820,6.44793715,2009.1,2008.7,9.15646837]
[1772515695423,5.43548536,2009.1,2008.7,9.15646837]
[1772515696927,4.83508191,2009.2,2008.7,9.15646837]
[1772515697121,10.17868475,2009.2,2008.7,9.15646837]
[1772515697317,6.35605463,2009.0,2008.6,16.26946837]
[1772515697521,6.35605463,2009.0,2008.7,9.15646837]
[1772515698119,6.34684748,2008.8,2008.4,16.81412596]
[1772515698624,6.34684748,2008.8,2008.5,9.67312596]
[1772515699734,5.33439569,2008.8,2008.5,9.67312596]
[1772515700026,6.34684748,2008.8,2008.5,9.41128488]
[1772515700225,5.33439569,2008.8,2008.5,9.41128488]
[1772515700627,1.01245179,2008.9,2008.4,7.142]
[1772515700628,6.35365622,2008.7,2008.4,16.56228488]
[1772515700827,5.34120443,2008.7,2008.4,16.56228488]
[1772515701329,6.35365622,2008.7,2008.4,16.56228488]
[1772515701828,6.35365622,2008.7,2007.6,1.26153179]
[1772515701829,6.3208359,2008.6,2008.3,16.56728488]
[1772515702028,5.30838411,2008.6,2008.3,16.56728488]
[1772515702332,4.70555635,2008.6,2008.3,16.56728488]
[1772515703231,4.70555635,2008.6,2008.3,9.41128488]
[1772515703529,5.65609384,2008.7,2008.3,9.41128488]
[1772515704030,5.68349531,2008.6,2008.3,9.41128488]
[1772515705525,4.72207421,2008.4,2008.2,7.163]
[1772515705729,5.734526,2008.4,2008.2,7.163]
[1772515706031,5.72354042,2008.4,2008.2,7.163]
[1772515706326,5.72354042,2008.3,2007.7,9.41128488]
[1772515706527,5.72354042,2008.3,2007.9,9.41128488]
[1772515706727,1.01245179,2008.2,2008.1,9.41128488]
[1772515706929,1.01245179,2008.3,2008.0,7.179]
[1772515707123,1.01245179,2008.2,2008.0,7.179]
[1772515707429,1.01245179,2008.4,2007.4,9.41128488]
[1772515707430,10.7426753,2008.1,2007.4,9.41128488]
[1772515707634,1.01245179,2007.9,2007.5,9.41128488]
[1772515707932,10.7426753,2007.9,2007.5,9.41128488]
[1772515708431,10.7426753,2007.9,2007.6,16.59628488]
[1772515709028,10.7426753,2007.7,2007.4,9.41128488]
[1772515709237,10.74726941,2007.7,2007.4,9.41128488]
[1772515709938,10.74726941,2007.7,2007.4,16.60328488]
[1772515710329,10.74726941,2007.7,2007.4,16.60628488]
[1772515710729,10.74726941,2007.7,2007.4,9.41128488]
[1772515710930,9.73481762,2007.7,2007.4,16.60928488]
[1772515711130,0.00459411,2007.7,2007.5,9.41128488]
[1772515711827,7.03,2008.0,2007.6,9.41128488]
[1772515712032,10.7426753,2008.1,2007.6,9.41128488]
[1772515712832,10.74738453,2008.1,2007.6,9.41128488]
[1772515714835,9.73493274,2008.1,2007.6,9.41128488]
[1772515715135,10.7426753,2008.0,2007.6,9.41128488]
[1772515715635,9.73022351,2008.0,2007.6,9.41128488]
[1772515716432,0.00470923,2008.1,2007.8,9.41128488]
[1772515718434,16.80822351,2008.4,2008.0,9.41128488]
[1772515718634,21.6396753,2008.6,2008.0,9.41128488]